fUSD/lending_fUSD_20250112
["ID","MTS","AMOUNT","RATE_DAILY","PERIOD"]
[348691244,1736718651621,-650.95,0.00011643,2]
[348691245,1736718651630,-476.22249,0.00011643,2]
[348691246,1736718651640,-500.0,0.00011643,2]
[348691247,1736718651649,-500.0,0.00011643,2]
[348691248,1736718651658,-500.0,0.00011643,2]
[348691249,1736718651667,-408.670288,0.00011643,2]
[348691250,1736718651677,-624.9,0.00011643,2]
[348691251,1736718651686,-655.65,0.00011643,2]
[348691252,1736718651695,-500.0,0.00011643,2]
[348691253,1736718651704,-500.0,0.00011643,2]
[348691254,1736718651714,-1923.5,0.00011643,2]
[348691255,1736718651723,-500.0,0.00011643,2]
[348691256,1736718651732,-596.96,0.00011643,2]
[348691257,1736718651741,-773.9,0.00011643,2]
[348691258,1736718651751,-930.45,0.00011643,2]
[348691259,1736718651759,-209.65696484,0.000117,2]
[348691260,1736718651769,-1000.0,0.000117,2]
[348691261,1736718651779,-777.24,0.00011715,2]
[348691262,1736718651788,-787.0,0.00011715,2]
[348691263,1736718651797,-787.62,0.00011715,2]
[348691264,1736718651806,-562.43,0.00011715,2]
[348691265,1736718651815,-860.5,0.00011715,2]
[348691266,1736718651824,-734.53,0.00011715,2]
[348691267,1736718651833,-733.56,0.00011715,2]
[348691268,1736718651843,-733.56,0.00011715,2]
[348691269,1736718651852,-1045.45,0.00011715,2]
[348691270,1736718651862,-1076.8,0.00011715,2]
[348691271,1736718651871,-1011.13,0.00011715,2]
[348691272,1736718651880,-1475.42,0.00011715,2]
[348691273,1736718651890,-630.15,0.00011715,2]
[348691274,1736718651898,-1364.6,0.00011716,2]
[348691275,1736718651908,-803.99,0.00011716,2]
[348691276,1736718651918,-1091.09,0.00011716,2]
[348691277,1736718651927,-911.66,0.00011716,2]
[348691278,1736718651937,-561.62,0.00011716,2]
[348691279,1736718651948,-500.0,0.00011716,2]
[348691280,1736718651957,-1216.09,0.00011716,2]
[348691281,1736718651968,-704.28,0.00011716,2]
[348691282,1736718651978,-500.0,0.00011716,2]
[348691283,1736718651987,-500.0,0.00011716,2]
[348691284,1736718651996,-540.52,0.00011716,2]
[348691285,1736718652006,-1500.0,0.00011721,2]
[348691286,1736718652015,-1500.0,0.00011737,2]
[348691287,1736718652025,-150.0,0.00011737,2]
[348691288,1736718652034,-150.0,0.00011747,2]
[348691289,1736718652043,-359.7362988,0.00011759,2]
[348691290,1736718652052,-150.0,0.00011771,2]
[348691291,1736718652061,-1500.0,0.00011771,2]
[348691292,1736718652072,-150.0,0.00011779,2]
[348691293,1736718652082,-1500.0,0.00011794,2]
[348691294,1736718652091,-150.0,0.00011794,2]
[348691295,1736718652101,-1500.0,0.00011795,2]
[348691296,1736718652111,-150.0,0.00011795,2]
[348691297,1736718652121,-1625.0,0.000118,4]
[348691298,1736718652133,-1500.0,0.00011814,2]
[348691299,1736718652143,-1500.0,0.00011815,2]
[348691300,1736718652155,-200.77379883,0.00011817,2]
[348691301,1736718652165,-150.0,0.0001182,2]
[348691302,1736718652174,-150.0,0.00011822,2]
[348691303,1736718652184,-1500.0,0.00011832,2]
[348691304,1736718652193,-150.0,0.00011839,2]
[348691305,1736718652203,-150.0,0.0001184,2]
[348691306,1736718652213,-1500.0,0.00011841,2]
[348691307,1736718652223,-150.0,0.00011844,2]
[348691308,1736718652234,-150.0,0.00011844,2]
[348691309,1736718652243,-156.63,0.00011847,2]
[348691310,1736718652252,-150.0,0.0001187,2]
[348691311,1736718652261,-150.0,0.00011873,2]
[348691312,1736718652270,-1500.0,0.00011874,2]
[348691313,1736718652279,-2576.98842426,0.0001188,2]
[348691314,1736718652622,-661.94800014,0.0001188,2]
[348691315,1736718652639,-1735.0,0.0001188,2]
[348691316,1736718652692,-826.0635756,0.0001188,2]
[348691317,1736718652704,-230.59155975,0.00011885,2]
[348691318,1736718652714,-5800.0,0.00011888,2]
[348691319,1736718652724,-500.0,0.00011888,2]
[348691320,1736718652735,-500.0,0.00011888,2]
[348691321,1736718652745,-2050.95,0.00011888,2]
[348691322,1736718652755,-641.29,0.00011888,2]
[348691323,1736718652766,-500.0,0.00011888,2]
[348691324,1736718652779,-800.14,0.00011888,2]
[348691325,1736718652790,-816.64,0.00011888,2]
[348691326,1736718652800,-1160.04,0.00011888,2]
[348691327,1736718652810,-817.54,0.00011888,2]
[348691328,1736718652820,-1385.85,0.00011888,2]
[348691329,1736718652830,-960.89,0.00011888,2]
[348691330,1736718652840,-2295.2,0.00011888,2]
[348691331,1736718652854,-960.5,0.00011888,2]
[348691332,1736718652865,-1918.66,0.00011888,2]
[348691333,1736718652876,-976.04,0.00011888,2]
[348691334,1736718652886,-734.60486865,0.00011888,2]
[348691335,1736718652899,-189.03513135,0.00011888,2]
[348691336,1736718652909,-582.83,0.00011888,2]
[348691337,1736718652921,-967.5,0.00011888,2]
[348691338,1736718652933,-1248.4,0.00011888,2]
[348691339,1736718652945,-1117.98,0.00011888,2]
[348691340,1736718652956,-2432.43,0.00011888,2]
[348691341,1736718652967,-2311.91,0.00011889,2]
[348691342,1736718652978,-150.0,0.00011889,2]
[348691343,1736718652989,-1591.89,0.00011889,2]
[348691344,1736718652999,-883.92,0.00011889,2]
[348691345,1736718653012,-904.75,0.00011889,2]
[348691346,1736718653023,-685.38,0.00011889,2]
[348691347,1736718653034,-1044.84,0.00011889,2]
[348691348,1736718653045,-1544.43,0.00011889,2]
[348691349,1736718653057,-150.0,0.00011895,2]
[348691350,1736718653068,-5800.0,0.00011897,2]
[348691351,1736718653079,-150.0,0.00011898,2]
[348691352,1736718653091,-981.5232,0.00011899,2]
[348691353,1736718653102,-1542.48,0.00011899,2]
[348691354,1736718653115,-1542.48,0.00011899,2]
[348691355,1736718653127,-1542.48,0.00011899,2]
[348691356,1736718653141,-226010.59203124,0.000119,2]
[348691357,1736718653151,-209.65696484,0.000119,2]
[348691358,1736718653162,-779.08061382,0.000119,2]
[348691359,1736718653175,-1500.0,0.00011905,2]
[348691360,1736718653186,-5800.0,0.00011905,2]
[348691361,1736718653196,-5800.0,0.00011914,2]
[348691362,1736718653207,-500.0,0.00011917,2]
[348691363,1736718653219,-656.56,0.00011917,2]
[348691364,1736718653231,-500.0,0.00011917,2]
[348691365,1736718653242,-500.0,0.00011917,2]
[348691366,1736718653253,-580.03,0.00011917,2]
[348691367,1736718653266,-500.0,0.00011917,2]
[348691368,1736718653277,-540.76033735,0.00011917,2]
[348691369,1736718653288,-500.0,0.00011917,2]
[348691370,1736718653298,-500.0,0.00011917,2]
[348691371,1736718653308,-500.0,0.00011917,2]
[348691372,1736718653319,-500.0,0.00011917,2]
[348691373,1736718653330,-500.0,0.00011917,2]
[348691374,1736718653342,-500.0,0.00011917,2]
[348691375,1736718653353,-500.0,0.00011917,2]
[348691376,1736718653363,-500.0,0.00011917,2]
[348691377,1736718653374,-500.0,0.00011917,2]
[348691378,1736718653384,-500.0,0.00011917,2]
[348691379,1736718653394,-500.0,0.00011917,2]
[348691380,1736718653404,-500.0,0.00011917,2]
[348691381,1736718653414,-500.0,0.00011917,2]
[348691382,1736718653424,-512.18,0.00011917,2]
[348691383,1736718653435,-500.0,0.00011917,2]
[348691384,1736718653445,-502.14,0.00011917,2]
[348691385,1736718653455,-508.12,0.00011917,2]
[348691386,1736718653465,-500.0,0.00011917,2]
[348691387,1736718653475,-500.0,0.00011917,2]
[348691388,1736718653486,-554.36,0.00011917,2]
[348691389,1736718653496,-500.0,0.00011917,2]
[348691390,1736718653507,-500.0,0.00011917,2]
[348691391,1736718653520,-569.48,0.00011917,2]
[348691392,1736718653533,-500.0,0.00011917,2]
[348691393,1736718653544,-500.0,0.00011917,2]
[348691394,1736718653555,-500.0,0.00011917,2]
[348691395,1736718653566,-338.64922327,0.00011917,2]
[348691396,1736718653577,-417.75574994,0.00011917,2]
[348691397,1736718653587,-500.0,0.00011917,2]
[348691398,1736718653598,-500.0,0.00011917,2]
[348691399,1736718653608,-520.25,0.00011917,2]
[348691400,1736718653619,-500.0,0.00011917,2]
[348691401,1736718653630,-500.0,0.00011917,2]
[348691402,1736718653641,-500.0,0.00011917,2]
[348691403,1736718653651,-555.37,0.00011917,2]
[348691404,1736718653662,-500.0,0.00011917,2]
[348691405,1736718653673,-513.36,0.00011917,2]
[348691406,1736718653683,-583.47,0.00011917,2]
[348691407,1736718653694,-500.0,0.00011917,2]
[348691408,1736718653704,-500.0,0.00011917,2]
[348691409,1736718653715,-500.0,0.00011917,2]
[348691410,1736718653726,-500.0,0.00011917,2]
[348691411,1736718653737,-500.0,0.00011917,2]
[348691412,1736718653749,-500.0,0.00011917,2]
[348691413,1736718653760,-881.9,0.00011917,2]
[348691414,1736718653770,-500.0,0.00011917,2]
[348691415,1736718653781,-500.0,0.00011917,2]
[348691416,1736718653791,-500.0,0.00011917,2]
[348691417,1736718653801,-500.0,0.00011917,2]
[348691418,1736718653812,-515.33,0.00011917,2]
[348691419,1736718653822,-500.0,0.00011917,2]
[348691420,1736718653833,-500.0,0.00011917,2]
[348691421,1736718653843,-518.34,0.00011917,2]
[348691422,1736718653853,-500.0,0.00011917,2]
[348691423,1736718653864,-500.0,0.00011917,2]
[348691424,1736718653874,-500.0,0.00011917,2]
[348691425,1736718653885,-593.48,0.00011917,2]
[348691426,1736718653896,-500.0,0.00011917,2]
[348691427,1736718653906,-539.97,0.00011917,2]
[348691428,1736718653916,-500.0,0.00011917,2]
[348691429,1736718653927,-1075.98,0.00011917,2]
[348691430,1736718653938,-3009.24,0.00011917,2]
[348691431,1736718653948,-500.0,0.00011917,2]
[348691432,1736718653959,-613.21,0.00011917,2]
[348691433,1736718653970,-399.21350051,0.00011917,2]
[348691434,1736718653981,-500.0,0.00011917,2]
[348691435,1736718653992,-500.0,0.00011917,2]
[348691436,1736718654002,-506.99,0.00011917,2]
[348691437,1736718654014,-2155.98,0.00011917,2]
[348691438,1736718654025,-500.0,0.00011917,2]
[348691439,1736718654037,-500.0,0.00011917,2]
[348691440,1736718654049,-500.0,0.00011917,2]
[348691441,1736718654059,-615.0,0.00011917,2]
[348691442,1736718654071,-622.97,0.00011917,2]
[348691443,1736718654082,-1534.43,0.00011917,2]
[348691444,1736718654093,-682.67,0.00011917,2]
[348691445,1736718654103,-500.0,0.00011917,2]
[348691446,1736718654113,-552.72,0.00011917,2]
[348691447,1736718654124,-653.94,0.00011917,2]
[348691448,1736718654138,-500.0,0.00011917,2]
[348691449,1736718654149,-500.0,0.00011917,2]
[348691450,1736718654159,-500.0,0.00011917,2]
[348691451,1736718654170,-981.19,0.00011917,2]
[348691452,1736718654181,-594.78,0.00011917,2]
[348691453,1736718654191,-1830.09,0.00011917,2]
[348691454,1736718654201,-517.41,0.00011917,2]
[348691455,1736718654211,-500.0,0.00011917,2]
[348691456,1736718654222,-1252.0,0.00011917,2]
[348691457,1736718654232,-2295.68,0.00011917,2]
[348691458,1736718654242,-500.0,0.00011917,2]
[348691459,1736718654252,-517.75,0.00011917,2]
[348691460,1736718654263,-530.16,0.00011917,2]
[348691461,1736718654273,-641.82,0.00011917,2]
[348691462,1736718654282,-547.89,0.00011917,2]
[348691463,1736718654292,-1374.95,0.00011917,2]
[348691464,1736718654303,-500.0,0.00011917,2]
[348691465,1736718654313,-734.01,0.00011917,2]
[348691466,1736718654324,-556.01,0.00011917,2]
[348691467,1736718654335,-1414.63,0.00011917,2]
[348691468,1736718654347,-951.96,0.00011917,2]
[348691469,1736718654358,-530.5,0.00011917,2]
[348691470,1736718654369,-500.0,0.00011917,2]
[348691471,1736718654379,-605.92,0.00011917,2]
[348691472,1736718654390,-500.0,0.00011917,2]
[348691473,1736718654402,-500.0,0.00011917,2]
[348691474,1736718654412,-800.04,0.00011917,2]
[348691475,1736718654423,-563.5,0.00011917,2]
[348691476,1736718654434,-1624.05,0.00011917,2]
[348691477,1736718654444,-650.95,0.00011917,2]
[348691478,1736718654455,-476.22249,0.00011917,2]
[348691479,1736718654466,-500.0,0.00011917,2]
[348691480,1736718654476,-500.0,0.00011917,2]
[348691481,1736718654486,-500.0,0.00011917,2]
[348691482,1736718654495,-408.670288,0.00011917,2]
[348691483,1736718654505,-624.9,0.00011917,2]
[348691484,1736718654515,-655.65,0.00011917,2]
[348691485,1736718654524,-500.0,0.00011917,2]
[348691486,1736718654534,-500.0,0.00011917,2]
[348691487,1736718654543,-1923.5,0.00011917,2]
[348691488,1736718654553,-500.0,0.00011917,2]
[348691489,1736718654562,-596.96,0.00011917,2]
[348691490,1736718654571,-773.9,0.00011917,2]
[348691491,1736718654581,-930.45,0.00011917,2]
[348691492,1736718654590,-5800.0,0.00011922,2]
[348691493,1736718654599,-5800.0,0.00011931,2]
[348691494,1736718654608,-1500.0,0.00011933,2]
[348691495,1736718654618,-150.50152616,0.00011936,2]
[348691496,1736718654627,-5800.0,0.00011939,2]
[348691497,1736718654636,-150.0,0.0001194,2]
[348691498,1736718654646,-1500.0,0.00011943,2]
[348691499,1736718654655,-150.0,0.00011947,2]
[348691500,1736718654664,-5800.0,0.00011948,2]
[348691501,1736718654673,-150.0,0.00011949,2]
[348691502,1736718654683,-5800.0,0.00011956,2]
[348691503,1736718654692,-150.0,0.00011957,2]
[348691504,1736718654701,-150.0,0.00011964,2]
[348691505,1736718654711,-5800.0,0.00011965,2]
[348691506,1736718654720,-5800.0,0.00011973,2]
[348691507,1736718654729,-5800.0,0.00011982,2]
[348691508,1736718654739,-150.0,0.00011983,2]
[348691509,1736718654748,-1500.0,0.00011986,2]
[348691510,1736718654758,-150.0,0.00011988,2]
[348691511,1736718654768,-777.24,0.00011989,2]
[348691512,1736718654777,-787.0,0.00011989,2]
[348691513,1736718654786,-787.62,0.00011989,2]
[348691514,1736718654796,-562.43,0.00011989,2]
[348691515,1736718654805,-860.5,0.00011989,2]
[348691516,1736718654814,-734.53,0.00011989,2]
[348691517,1736718654824,-733.56,0.00011989,2]
[348691518,1736718654833,-733.56,0.00011989,2]
[348691519,1736718654842,-1045.45,0.00011989,2]
[348691520,1736718654852,-1076.8,0.00011989,2]
[348691521,1736718654861,-1011.13,0.00011989,2]
[348691522,1736718654871,-1475.42,0.00011989,2]
[348691523,1736718654880,-630.15,0.00011989,2]
[348691524,1736718654890,-5800.0,0.0001199,2]
[348691525,1736718654899,-3639.66523741,0.0001199,2]
[348691526,1736718654908,-1364.6,0.0001199,2]
[348691527,1736718655353,-1542.48,0.0001199,2]
[348691528,1736718655370,-803.99,0.0001199,2]
[348691529,1736718655379,-1091.09,0.0001199,2]
[348691530,1736718655390,-911.66,0.0001199,2]
[348691531,1736718655401,-561.62,0.0001199,2]
[348691532,1736718655412,-500.0,0.0001199,2]
[348691533,1736718655422,-1216.09,0.0001199,2]
[348691534,1736718655433,-704.28,0.0001199,2]
[348691535,1736718655442,-500.0,0.0001199,2]
[348691536,1736718655452,-500.0,0.0001199,2]
[348691537,1736718655462,-540.52,0.0001199,2]
[348691538,1736718655473,-24575.5129232,0.00011991,2]
[348691539,1736718655483,-8347.8772503,0.00011991,2]
[348691540,1736718655492,-1542.48,0.00011999,2]
[348691541,1736718655504,-8012.44025876,0.00012,4]
[348691542,1736718655512,-600.05701065,0.00012,2]
[348691543,1736718655523,-50367.36988577,0.00012,2]
[348691544,1736718655531,-500.0,0.00012,2]
[348691545,1736718655541,-1327.2,0.00012,2]
[348691546,1736718655552,-3000.0,0.00012,2]
[348691547,1736718655563,-3000.0,0.00012,2]
[348691548,1736718655572,-3000.0,0.00012,2]
[348691549,1736718655583,-1942.44,0.00012,2]
[348691550,1736718655592,-57412.25716205,0.00012,2]
[348691551,1736718655762,-302.5168,0.0001,2]
[348691552,1736718655774,-19.17292531,0.0001,2]
[348691553,1736718655783,-547.39,0.00011643,2]
[348691554,1736718655792,-699.37376443,0.00012,2]
[348691555,1736718655804,-5254.55817386,0.00012,2]
[348691556,1736718655817,-3298.12190352,0.00012,2]
[348691557,1736718655828,-83446.56842255,0.00012,2]
[348691558,1736718655839,-252.28,0.00012,2]
[348691559,1736718655852,-363.0,0.00012,2]
[348691560,1736718655863,-7392.2275,0.00012,2]
[348691561,1736718655874,-6300.0,0.00012,2]
[348691562,1736718655886,-655.5723265,0.00012,2]
[348691563,1736718655899,-7107.57923962,0.00012,2]
[348691564,1736718655916,-29225.44119833,0.00012,2]
[348691565,1736718655925,-10015.41950203,0.00012,2]
[348691566,1736718655935,-357.67,0.00012,2]
[348691567,1736718655944,-357.67,0.00012,2]
[348691568,1736718655953,-357.67,0.00012,2]
[348691569,1736718655962,-357.67,0.00012,2]
[348691570,1736718655971,-357.67,0.00012,2]
[348691571,1736718655980,-357.67,0.00012,2]
[348691572,1736718655990,-357.67,0.00012,2]
[348691573,1736718656000,-357.67,0.00012,2]
[348691574,1736718656010,-357.67,0.00012,2]
[348691575,1736718656019,-357.67,0.00012,2]
[348691576,1736718656029,-357.67,0.00012,2]
[348691577,1736718656038,-357.67,0.00012,2]
[348691578,1736718656048,-357.67,0.00012,2]
[348691579,1736718656057,-207.92930202,0.00012,2]
[348691580,1736718656074,-149.74069798,0.00012,2]
[348691581,1736718656083,-357.67,0.00012,2]
[348691582,1736718656093,-357.67,0.00012,2]
[348691583,1736718656102,-357.67,0.00012,2]
[348691584,1736718656111,-357.67,0.00012,2]
[348691585,1736718656121,-357.67,0.00012,2]
[348691586,1736718656132,-357.67,0.00012,2]
[348691587,1736718656142,-357.67,0.00012,2]
[348691588,1736718656151,-357.67,0.00012,2]
[348691589,1736718656160,-357.67,0.00012,2]
[348691590,1736718656170,-357.67,0.00012,2]
[348691591,1736718656180,-357.67,0.00012,2]
[348691592,1736718656189,-357.67,0.00012,2]
[348691593,1736718656199,-357.67,0.00012,2]
[348691594,1736718656211,-357.67,0.00012,2]
[348691595,1736718656220,-357.67,0.00012,2]
[348691596,1736718656231,-357.67,0.00012,2]
[348691597,1736718656240,-357.67,0.00012,2]
[348691598,1736718656249,-357.67,0.00012,2]
[348691599,1736718656258,-357.67,0.00012,2]
[348691600,1736718656268,-357.67,0.00012,2]
[348691601,1736718656277,-357.67,0.00012,2]
[348691602,1736718656287,-357.67,0.00012,2]
[348691603,1736718656296,-357.67,0.00012,2]
[348691604,1736718656305,-357.67,0.00012,2]
[348691605,1736718656314,-357.67,0.00012,2]
[348691606,1736718656323,-357.67,0.00012,2]
[348691607,1736718656334,-357.67,0.00012,2]
[348691608,1736718656343,-357.67,0.00012,2]
[348691609,1736718656353,-357.67,0.00012,2]
[348691610,1736718656362,-357.67,0.00012,2]
[348691611,1736718656372,-357.67,0.00012,2]
[348691612,1736718656381,-357.67,0.00012,2]
[348691613,1736718656390,-357.67,0.00012,2]
[348691614,1736718656400,-357.67,0.00012,2]
[348691615,1736718656409,-357.67,0.00012,2]
[348691616,1736718656419,-357.67,0.00012,2]
[348691617,1736718656428,-357.67,0.00012,2]
[348691618,1736718656438,-357.67,0.00012,2]
[348691619,1736718656449,-357.67,0.00012,2]
[348691620,1736718656458,-357.67,0.00012,2]
[348691621,1736718656468,-357.67,0.00012,2]
[348691622,1736718656477,-357.67,0.00012,2]
[348691623,1736718656487,-357.67,0.00012,2]
[348691624,1736718656497,-357.67,0.00012,2]
[348691625,1736718656507,-357.67,0.00012,2]
[348691626,1736718656517,-357.67,0.00012,2]
[348691627,1736718656527,-357.67,0.00012,2]
[348691628,1736718656536,-357.67,0.00012,2]
[348691629,1736718656546,-357.67,0.00012,2]
[348691630,1736718656557,-357.67,0.00012,2]
[348691631,1736718656566,-357.67,0.00012,2]
[348691632,1736718656576,-357.67,0.00012,2]
[348691633,1736718656585,-357.67,0.00012,2]
[348691634,1736718656595,-357.67,0.00012,2]
[348691635,1736718656604,-357.67,0.00012,2]
[348691636,1736718656613,-357.67,0.00012,2]
[348691637,1736718656623,-357.67,0.00012,2]
[348691638,1736718656632,-357.67,0.00012,2]
[348691639,1736718656642,-357.67,0.00012,2]
[348691640,1736718656651,-357.67,0.00012,2]
[348691641,1736718656661,-357.67,0.00012,2]
[348691642,1736718656670,-357.67,0.00012,2]
[348691643,1736718656679,-357.67,0.00012,2]
[348691644,1736718656688,-357.67,0.00012,2]
[348691645,1736718656697,-357.67,0.00012,2]
[348691646,1736718656707,-357.67,0.00012,2]
[348691647,1736718656717,-357.67,0.00012,2]
[348691648,1736718656726,-357.67,0.00012,2]
[348691649,1736718656735,-357.67,0.00012,2]
[348691650,1736718656744,-357.67,0.00012,2]
[348691651,1736718656754,-357.67,0.00012,2]
[348691652,1736718656763,-357.67,0.00012,2]
[348691653,1736718656771,-357.67,0.00012,2]
[348691654,1736718656781,-357.67,0.00012,2]
[348691655,1736718656790,-357.67,0.00012,2]
[348691656,1736718656799,-357.67,0.00012,2]
[348691657,1736718656809,-357.67,0.00012,2]
[348691658,1736718656818,-357.67,0.00012,2]
[348691659,1736718656827,-357.67,0.00012,2]
[348691660,1736718656838,-357.67,0.00012,2]
[348691661,1736718656848,-357.67,0.00012,2]
[348691662,1736718656857,-357.67,0.00012,2]
[348691663,1736718656867,-357.67,0.00012,2]
[348691664,1736718656877,-357.67,0.00012,2]
[348691665,1736718656887,-357.67,0.00012,2]
[348691666,1736718656897,-200.0,0.00012055,2]
[348691667,1736718656906,-36718.78,0.00012055,2]
[348691668,1736718656916,-1986.8227048,0.00012073,4]
[348691669,1736718656929,-3329.91357953,0.00012073,4]
[348691670,1736718656938,-166.81,0.00012087,2]
[348691671,1736718656947,-209.65696484,0.000121,2]
[348691672,1736718656956,-173.82,0.00012113,2]
[348691673,1736718656965,-500.0,0.00012162,2]
[348691674,1736718656974,-500.0,0.00012162,2]
[348691675,1736718656983,-457.29945563,0.00012162,2]
[348691678,1736719073231,152.62,0.000123,31]
[348691679,1736719073287,152.62,0.000123,31]
[348691680,1736719073351,152.62,0.000123,31]
[348691681,1736719073409,152.62,0.000123,31]
[348691682,1736719073470,152.62,0.000123,31]
[348691683,1736719073528,152.62,0.000123,31]
[348691684,1736719073592,152.62,0.000123,31]
[348691685,1736719073655,152.62,0.000123,31]
[348691686,1736719073717,152.62,0.000123,31]
[348691687,1736719073777,152.62,0.000123,31]
[348691688,1736719073834,152.62,0.000123,31]
[348691689,1736719073898,152.62,0.000123,31]
[348691690,1736719073963,152.62,0.000123,31]
[348691691,1736719074020,152.62,0.000123,31]
[348691696,1736719290271,680.87,8.219e-05,2]
[348691700,1736719680496,152.64,0.000123,31]
[348691701,1736719680569,152.64,0.000123,31]
[348691702,1736719680703,152.64,0.000123,31]
[348691703,1736719680772,152.64,0.000123,31]
[348691704,1736719680821,152.64,0.000123,31]
[348691705,1736719680871,152.64,0.000123,31]
[348691706,1736719680922,152.64,0.000123,31]
[348691715,1736719832398,-156.63,9.383e-05,2]
[348691716,1736719832408,-141.36,9.433e-05,2]
[348691720,1736719838275,-108.64,9.433e-05,2]
[348691721,1736719838284,-250.0,9.534e-05,2]
[348691722,1736719838293,-161.89,9.711e-05,2]
[348691723,1736719838304,-266.56,9.759e-05,2]
[348691724,1736719838314,-1000.0,9.899e-05,2]
[348691725,1736719838323,-403.23,9.901e-05,2]
[348691726,1736719838332,-150.0,9.93e-05,2]
[348691727,1736719838342,-1196.37,9.931e-05,2]
[348691728,1736719838351,-299.99,9.931e-05,2]
[348691729,1736719838360,-5520.4240357,9.931e-05,2]
[348691730,1736719838371,-698.05396459,9.931e-05,2]
[348691731,1736719838382,-3781.51199971,9.931e-05,2]
[348691732,1736719838391,-5629.00931249,9.931e-05,2]
[348691733,1736719838402,-1606.11597724,9.931e-05,2]
[348691734,1736719838413,-1605.64139295,9.931e-05,2]
[348691735,1736719838425,-948.53,9.931e-05,2]
[348691736,1736719838449,-1434.1199985,9.931e-05,2]
[348691793,1736719840640,-1133.68384296,9.931e-05,2]
[348691803,1736719843404,-1947.848,9.931e-05,2]
[348691804,1736719843481,-544.87432044,9.931e-05,2]
[348691805,1736719843627,-360.20251,9.931e-05,2]
[348691806,1736719843639,-11280.93419631,9.931e-05,2]
[348691807,1736719843650,-25433.78942825,9.931e-05,2]
[348691808,1736719843662,-4632.55102086,9.931e-05,2]
[348691809,1736719843672,-1384.3592,9.973e-05,2]
[348691810,1736719843681,-500.0,9.999e-05,2]
[348691811,1736719843690,-500.0,9.999e-05,2]
[348691812,1736719843700,-500.0,9.999e-05,2]
[348691813,1736719843709,-500.0,9.999e-05,2]
[348691814,1736719843719,-500.0,9.999e-05,2]
[348691815,1736719843728,-500.0,9.999e-05,2]
[348691816,1736719843737,-500.0,9.999e-05,2]
[348691817,1736719843746,-500.0,9.999e-05,2]
[348691818,1736719843755,-500.0,9.999e-05,2]
[348691819,1736719843765,-500.0,9.999e-05,2]
[348691820,1736719843774,-500.0,9.999e-05,2]
[348691821,1736719843784,-500.0,9.999e-05,2]
[348691822,1736719843793,-500.0,9.999e-05,2]
[348691823,1736719843802,-500.0,9.999e-05,2]
[348691824,1736719843815,-500.0,9.999e-05,2]
[348691826,1736719843824,-500.0,9.999e-05,2]
[348691828,1736719843833,-417.75574994,9.999e-05,2]
[348691830,1736719843842,-500.0,9.999e-05,2]
[348691831,1736719843852,-640.83085577,9.999e-05,2]